[Event "Late-Titled-Tuesday-Blitz-June-04-2024"]
[Site "Chess.com"]
[Date "2024.06.04"]
[Round "2"]
[White "Szparu"]
[Black "crazy_but_lazy"]
[Result "1/2-1/2"]
[WhiteElo "2982"]
[BlackElo "2619"]
[TimeControl "180+1"]
[EndTime "14:19:02 PDT"]
[Termination "Game drawn - insufficient material"]

1. Nf3 {[%clk 0:03:00.9]} 1... g6 {[%clk 0:02:59.4]} 2. e4 {[%clk 0:03:00.5]}
2... c5 {[%clk 0:02:58.8]} 3. c3 {[%clk 0:03:00.3]} 3... d5 {[%clk 0:02:55.6]}
4. exd5 {[%clk 0:03:01.2]} 4... Qxd5 {[%clk 0:02:56.3]} 5. d4 {[%clk 0:03:01.8]}
5... Bg7 {[%clk 0:02:55.5]} 6. Na3 {[%clk 0:03:02.4]} 6... cxd4 {[%clk
0:02:46.4]} 7. Nb5 {[%clk 0:03:02.6]} 7... Qd8 {[%clk 0:02:46]} 8. Bf4 {[%clk
0:03:01]} 8... Na6 {[%clk 0:02:46.2]} 9. Nbxd4 {[%clk 0:02:52.4]} 9... Nf6
{[%clk 0:02:44.3]} 10. Bb5+ {[%clk 0:02:37.2]} 10... Bd7 {[%clk 0:02:40]} 11.
Bxa6 {[%clk 0:02:37.7]} 11... bxa6 {[%clk 0:02:40.4]} 12. O-O {[%clk 0:02:37.6]}
12... O-O {[%clk 0:02:40.7]} 13. Be5 {[%clk 0:02:35.9]} 13... Qb6 {[%clk
0:02:35.2]} 14. Qb3 {[%clk 0:02:24.2]} 14... a5 {[%clk 0:02:34.2]} 15. Rfe1
{[%clk 0:02:22.6]} 15... a4 {[%clk 0:02:26.5]} 16. Qa3 {[%clk 0:02:15.1]} 16...
Rfe8 {[%clk 0:02:26.7]} 17. c4 {[%clk 0:02:15]} 17... Rac8 {[%clk 0:02:23.3]}
18. Rac1 {[%clk 0:02:11]} 18... Rc5 {[%clk 0:02:00.4]} 19. h3 {[%clk 0:02:02.5]}
19... Rec8 {[%clk 0:01:55.8]} 20. b3 {[%clk 0:01:59.6]} 20... axb3 {[%clk
0:01:50.3]} 21. axb3 {[%clk 0:02:00.5]} 21... a5 {[%clk 0:01:42.1]} 22. Rcd1
{[%clk 0:01:55.9]} 22... Qb7 {[%clk 0:01:30.6]} 23. Rd3 {[%clk 0:01:19]} 23...
Bf8 {[%clk 0:01:30.3]} 24. Qa1 {[%clk 0:01:16.4]} 24... Nh5 {[%clk 0:00:53.7]}
25. Ne2 {[%clk 0:00:58.5]} 25... f6 {[%clk 0:00:50.6]} 26. Bd4 {[%clk
0:00:56.4]} 26... R5c7 {[%clk 0:00:51.3]} 27. Bc3 {[%clk 0:00:28.1]} 27... a4
{[%clk 0:00:40.7]} 28. bxa4 {[%clk 0:00:27.9]} 28... Rxc4 {[%clk 0:00:40.5]} 29.
a5 {[%clk 0:00:26.4]} 29... e5 {[%clk 0:00:21.4]} 30. Nd2 {[%clk 0:00:26.6]}
30... Ra4 {[%clk 0:00:21.2]} 31. Qd1 {[%clk 0:00:26.8]} 31... Bb5 {[%clk
0:00:18.4]} 32. Qb3+ {[%clk 0:00:22.9]} 32... Kh8 {[%clk 0:00:15.5]} 33. Rf3
{[%clk 0:00:18.9]} 33... Bc6 {[%clk 0:00:11.9]} 34. Qxb7 {[%clk 0:00:15.5]}
34... Bxb7 {[%clk 0:00:12.8]} 35. Rd3 {[%clk 0:00:16]} 35... Ra3 {[%clk
0:00:12]} 36. Nb1 {[%clk 0:00:11.5]} 36... Ba6 {[%clk 0:00:11.6]} 37. Nxa3
{[%clk 0:00:10.4]} 37... Bxd3 {[%clk 0:00:12.2]} 38. Bb2 {[%clk 0:00:07.1]}
38... Bxe2 {[%clk 0:00:07.3]} 39. Rxe2 {[%clk 0:00:07.3]} 39... Nf4 {[%clk
0:00:07.9]} 40. Rd2 {[%clk 0:00:07.3]} 40... Bb4 {[%clk 0:00:08.1]} 41. Rd7
{[%clk 0:00:07.2]} 41... Bxa5 {[%clk 0:00:08.4]} 42. g3 {[%clk 0:00:05.7]} 42...
Ne6 {[%clk 0:00:08.4]} 43. f4 {[%clk 0:00:05.4]} 43... Rb8 {[%clk 0:00:06.5]}
44. Ba1 {[%clk 0:00:04.1]} 44... Rd8 {[%clk 0:00:06.3]} 45. Rxd8+ {[%clk
0:00:02.9]} 45... Bxd8 {[%clk 0:00:06.4]} 46. fxe5 {[%clk 0:00:03.4]} 46... fxe5
{[%clk 0:00:06.5]} 47. Bxe5+ {[%clk 0:00:04.1]} 47... Kg8 {[%clk 0:00:07.1]} 48.
Nc4 {[%clk 0:00:04.7]} 48... Be7 {[%clk 0:00:06.3]} 49. Kg2 {[%clk 0:00:04.9]}
49... Kf7 {[%clk 0:00:06.7]} 50. Kf3 {[%clk 0:00:05.3]} 50... Bf6 {[%clk
0:00:06.8]} 51. Bb8 {[%clk 0:00:04.7]} 51... Ng7 {[%clk 0:00:06.1]} 52. Ke4
{[%clk 0:00:04.7]} 52... Ke6 {[%clk 0:00:06.5]} 53. Nb6 {[%clk 0:00:03.9]} 53...
Ne8 {[%clk 0:00:06.1]} 54. Nd5 {[%clk 0:00:03.7]} 54... Bd8 {[%clk 0:00:06.6]}
55. Nf4+ {[%clk 0:00:04]} 55... Kf7 {[%clk 0:00:06.8]} 56. Ba7 {[%clk
0:00:04.6]} 56... Nf6+ {[%clk 0:00:07.2]} 57. Kf3 {[%clk 0:00:04.9]} 57... Bc7
{[%clk 0:00:07.7]} 58. Bd4 {[%clk 0:00:04.8]} 58... Bxf4 {[%clk 0:00:07.6]} 59.
Kxf4 {[%clk 0:00:05.3]} 59... Ng8 {[%clk 0:00:06.7]} 60. Kg5 {[%clk 0:00:05.5]}
60... h6+ {[%clk 0:00:06.6]} 61. Kf4 {[%clk 0:00:06.1]} 61... g5+ {[%clk
0:00:06.7]} 62. Kf5 {[%clk 0:00:06.4]} 62... Ne7+ {[%clk 0:00:07.3]} 63. Kg4
{[%clk 0:00:06.7]} 63... Kg6 {[%clk 0:00:07.9]} 64. Kf3 {[%clk 0:00:06.3]} 64...
Kf5 {[%clk 0:00:07.8]} 65. g4+ {[%clk 0:00:05.8]} 65... Kg6 {[%clk 0:00:08.3]}
66. Ke4 {[%clk 0:00:06.2]} 66... h5 {[%clk 0:00:07.1]} 67. Bc5 {[%clk 0:00:06]}
67... hxg4 {[%clk 0:00:06.5]} 68. hxg4 {[%clk 0:00:06.9]} 68... Ng8 {[%clk
0:00:06.4]} 69. Bd4 {[%clk 0:00:07.1]} 69... Nh6 {[%clk 0:00:06.1]} 70. Kf3
{[%clk 0:00:07.6]} 70... Nf7 {[%clk 0:00:06.4]} 71. Ke4 {[%clk 0:00:07.6]} 71...
Nd6+ {[%clk 0:00:06.5]} 72. Kd5 {[%clk 0:00:07.1]} 72... Nf7 {[%clk 0:00:05.9]}
73. Ke4 {[%clk 0:00:07.3]} 73... Nd6+ {[%clk 0:00:05.4]} 74. Kf3 {[%clk
0:00:07.4]} 74... Kf7 {[%clk 0:00:04.1]} 75. Be3 {[%clk 0:00:07.5]} 75... Kf6
{[%clk 0:00:04.1]} 76. Bd4+ {[%clk 0:00:07.6]} 76... Kg6 {[%clk 0:00:04.6]} 77.
Be3 {[%clk 0:00:07.9]} 77... Nf7 {[%clk 0:00:04.7]} 78. Bxg5 {[%clk 0:00:08.1]}
78... Ne5+ {[%clk 0:00:05.1]} 79. Kf4 {[%clk 0:00:08.1]} 79... Nxg4 {[%clk
0:00:06]} 1/2-1/2

[Event "Late-Titled-Tuesday-Blitz-June-04-2024"]
[Site "Chess.com"]
[Date "2024.06.04"]
[Round "2"]
[White "Jesseinkman"]
[Black "Eduard_Limonov"]
[Result "0-1"]
[WhiteElo "2549"]
[BlackElo "2838"]
[TimeControl "180+1"]
[EndTime "14:19:03 PDT"]
[Termination "Eduard_Limonov won by resignation"]

1. e4 {[%clk 0:03:00.9]} 1... c6 {[%clk 0:02:58.8]} 2. d4 {[%clk 0:02:56.9]}
2... d5 {[%clk 0:02:59.1]} 3. exd5 {[%clk 0:02:57.8]} 3... cxd5 {[%clk
0:02:59.9]} 4. Bd3 {[%clk 0:02:58.4]} 4... Nc6 {[%clk 0:02:59.4]} 5. c3 {[%clk
0:02:57.1]} 5... Nf6 {[%clk 0:02:59.7]} 6. Bf4 {[%clk 0:02:56.5]} 6... Bg4
{[%clk 0:02:57.8]} 7. Qb3 {[%clk 0:02:56.5]} 7... e5 {[%clk 0:02:57.8]} 8. dxe5
{[%clk 0:02:49.2]} 8... Nh5 {[%clk 0:02:57.7]} 9. Be3 {[%clk 0:02:41.3]} 9...
Nxe5 {[%clk 0:02:57.1]} 10. Bb5+ {[%clk 0:02:41.5]} 10... Nc6 {[%clk 0:02:56.5]}
11. Qa4 {[%clk 0:02:41.9]} 11... Bd7 {[%clk 0:02:55.9]} 12. Nf3 {[%clk
0:02:41.5]} 12... a6 {[%clk 0:02:54.7]} 13. Bxc6 {[%clk 0:02:41.8]} 13... Bxc6
{[%clk 0:02:54.8]} 14. Qb3 {[%clk 0:02:33.3]} 14... Bd6 {[%clk 0:02:52.7]} 15.
Nd4 {[%clk 0:02:31.5]} 15... O-O {[%clk 0:02:52.2]} 16. O-O {[%clk 0:02:29.2]}
16... Re8 {[%clk 0:02:49.7]} 17. Nd2 {[%clk 0:02:26.6]} 17... h6 {[%clk
0:02:24.3]} 18. N2f3 {[%clk 0:02:25.1]} 18... Qd7 {[%clk 0:02:23.7]} 19. Qc2
{[%clk 0:02:06]} 19... Nf6 {[%clk 0:02:13.5]} 20. Rad1 {[%clk 0:02:02.6]} 20...
Rad8 {[%clk 0:02:11.3]} 21. h3 {[%clk 0:01:56.5]} 21... Ne4 {[%clk 0:02:10.1]}
22. Rfe1 {[%clk 0:01:52.6]} 22... Bb8 {[%clk 0:02:08.5]} 23. Nxc6 {[%clk
0:01:40.3]} 23... bxc6 {[%clk 0:02:06.2]} 24. c4 {[%clk 0:01:31.3]} 24... Qb7
{[%clk 0:01:56.6]} 25. cxd5 {[%clk 0:01:27.8]} 25... cxd5 {[%clk 0:01:56.4]} 26.
Nd4 {[%clk 0:01:15.6]} 26... Be5 {[%clk 0:01:51]} 27. f3 {[%clk 0:00:55.9]}
27... Rc8 {[%clk 0:01:44.1]} 28. Qb1 {[%clk 0:00:39.5]} 28... Nd6 {[%clk
0:01:42.7]} 29. b3 {[%clk 0:00:35.6]} 29... Qb4 {[%clk 0:01:22.7]} 30. Nf5
{[%clk 0:00:25.7]} 30... Nxf5 {[%clk 0:01:21.2]} 31. Qxf5 {[%clk 0:00:25.3]}
31... Bg3 {[%clk 0:01:00.9]} 32. Re2 {[%clk 0:00:13]} 32... d4 {[%clk
0:01:00.7]} 33. Bd2 {[%clk 0:00:12.6]} 33... Qb5 {[%clk 0:00:47.8]} 34. Rxe8+
{[%clk 0:00:11.1]} 34... Rxe8 {[%clk 0:00:47.6]} 35. Qg4 {[%clk 0:00:04.1]}
35... Qe2 {[%clk 0:00:45.7]} 36. f4 {[%clk 0:00:03.2]} 36... Qxg4 {[%clk
0:00:43]} 37. hxg4 {[%clk 0:00:03.1]} 37... Re2 {[%clk 0:00:43.4]} 38. f5 {[%clk
0:00:03]} 38... d3 {[%clk 0:00:38.4]} 39. a4 {[%clk 0:00:03]} 39... Re4 {[%clk
0:00:26.8]} 40. Bc3 {[%clk 0:00:03.1]} 40... Re3 {[%clk 0:00:17.3]} 41. Bd4
{[%clk 0:00:02.9]} 41... Re4 {[%clk 0:00:14.1]} 42. Bc3 {[%clk 0:00:03.3]} 42...
Rxg4 {[%clk 0:00:13.7]} 43. Rxd3 {[%clk 0:00:03.1]} 43... Bc7 {[%clk 0:00:13.2]}
44. f6 {[%clk 0:00:02.7]} 44... Bb6+ {[%clk 0:00:11.5]} 45. Kf1 {[%clk
0:00:02.7]} 45... gxf6 {[%clk 0:00:11.6]} 46. Rf3 {[%clk 0:00:01.9]} 46... Bd8
{[%clk 0:00:06.1]} 47. Bxf6 {[%clk 0:00:02]} 47... Bc7 {[%clk 0:00:06.4]} 48.
Bd4 {[%clk 0:00:01.3]} 48... Rxd4 {[%clk 0:00:06.1]} 49. Rf5 {[%clk 0:00:01.8]}
49... Rd6 {[%clk 0:00:06.2]} 50. Rc5 {[%clk 0:00:01.6]} 50... Bb6 {[%clk
0:00:06.1]} 51. Rc8+ {[%clk 0:00:02.5]} 51... Kg7 {[%clk 0:00:06.3]} 52. b4
{[%clk 0:00:03.1]} 52... Rd4 {[%clk 0:00:06.7]} 53. a5 {[%clk 0:00:03.4]} 53...
Ba7 {[%clk 0:00:06]} 54. Rc7 {[%clk 0:00:03.8]} 54... Bb8 {[%clk 0:00:05.2]} 55.
Rb7 {[%clk 0:00:04.4]} 55... Bd6 {[%clk 0:00:05.4]} 56. Rb6 {[%clk 0:00:04.9]}
56... Bxb4 {[%clk 0:00:05.7]} 57. Rxa6 {[%clk 0:00:05.5]} 57... Rd1+ {[%clk
0:00:06.1]} 58. Ke2 {[%clk 0:00:05.7]} 58... Ra1 {[%clk 0:00:07]} 59. Rb6 {[%clk
0:00:05.4]} 59... Ra2+ {[%clk 0:00:07.9]} 60. Kd3 {[%clk 0:00:05.6]} 60... Bxa5
{[%clk 0:00:08.8]} 61. Ra6 {[%clk 0:00:06.2]} 61... Ra3+ {[%clk 0:00:09]} 62.
Ke4 {[%clk 0:00:06.4]} 62... Bb4 {[%clk 0:00:09.2]} 63. Rc6 {[%clk 0:00:07.3]}
63... Be7 {[%clk 0:00:09.3]} 64. Rc7 {[%clk 0:00:07.2]} 64... Bf6 {[%clk
0:00:09.2]} 65. Rc8 {[%clk 0:00:07.8]} 65... Rg3 {[%clk 0:00:09.3]} 66. Kf4
{[%clk 0:00:07.8]} 66... Rxg2 {[%clk 0:00:09.4]} 67. Kf5 {[%clk 0:00:08.7]}
67... Rg5+ {[%clk 0:00:09.8]} 68. Kf4 {[%clk 0:00:09.2]} 68... h5 {[%clk
0:00:10.7]} 69. Kf3 {[%clk 0:00:10.1]} 69... Rf5+ {[%clk 0:00:10.4]} 70. Kg3
{[%clk 0:00:10.2]} 70... h4+ {[%clk 0:00:10.3]} 71. Kh3 {[%clk 0:00:11.1]} 71...
Rf3+ {[%clk 0:00:10.1]} 72. Kg2 {[%clk 0:00:10.9]} 72... Rg3+ {[%clk 0:00:10.5]}
73. Kh2 {[%clk 0:00:11.8]} 73... Rg4 {[%clk 0:00:09.6]} 74. Kh1 {[%clk
0:00:12.7]} 74... Kg6 {[%clk 0:00:09.5]} 75. Kh2 {[%clk 0:00:13.2]} 75... Kf5
{[%clk 0:00:10]} 76. Kh3 {[%clk 0:00:14.1]} 76... Rg3+ {[%clk 0:00:09.9]} 77.
Kh2 {[%clk 0:00:15]} 77... Be5 {[%clk 0:00:09.7]} 78. Kh1 {[%clk 0:00:15.4]}
78... Rc3 {[%clk 0:00:09.8]} 79. Kg1 {[%clk 0:00:15.1]} 79... Rxc8 {[%clk
0:00:09.8]} 0-1

[Event "Late-Titled-Tuesday-Blitz-June-04-2024"]
[Site "Chess.com"]
[Date "2024.06.04"]
[Round "2"]
[White "Aygehovit1992"]
[Black "pinelone"]
[Result "1-0"]
[WhiteElo "2801"]
[BlackElo "2402"]
[TimeControl "180+1"]
[EndTime "14:19:07 PDT"]
[Termination "Aygehovit1992 won by checkmate"]

1. e4 {[%clk 0:03:00.9]} 1... c6 {[%clk 0:02:59.8]} 2. Nc3 {[%clk 0:02:59.5]}
2... d5 {[%clk 0:03:00.1]} 3. Nf3 {[%clk 0:03:00.4]} 3... dxe4 {[%clk
0:03:00.3]} 4. Nxe4 {[%clk 0:02:59]} 4... Nf6 {[%clk 0:03:00.9]} 5. Qe2 {[%clk
0:02:58.5]} 5... Nxe4 {[%clk 0:03:00.5]} 6. Qxe4 {[%clk 0:02:59.4]} 6... Be6
{[%clk 0:03:00.1]} 7. c4 {[%clk 0:02:58.1]} 7... Nd7 {[%clk 0:02:59.7]} 8. b3
{[%clk 0:02:53.3]} 8... Nf6 {[%clk 0:02:59.1]} 9. Qe3 {[%clk 0:02:51.2]} 9...
Bf5 {[%clk 0:02:52.9]} 10. Bb2 {[%clk 0:02:47.9]} 10... e6 {[%clk 0:02:51.9]}
11. Be2 {[%clk 0:02:43.7]} 11... Be7 {[%clk 0:02:50.4]} 12. h3 {[%clk
0:02:37.7]} 12... Qb6 {[%clk 0:02:38.4]} 13. Ne5 {[%clk 0:02:28]} 13... Qxe3
{[%clk 0:02:28.6]} 14. fxe3 {[%clk 0:02:23.4]} 14... Ne4 {[%clk 0:02:14.7]} 15.
O-O-O {[%clk 0:02:08.8]} 15... Nf2 {[%clk 0:02:12.6]} 16. g4 {[%clk 0:02:04.6]}
16... Be4 {[%clk 0:01:53.8]} 17. Rhf1 {[%clk 0:01:41.3]} 17... Nxd1 {[%clk
0:01:53.7]} 18. Kxd1 {[%clk 0:01:42.1]} 18... f6 {[%clk 0:01:50.2]} 19. Nd3
{[%clk 0:01:34.2]} 19... Bxd3 {[%clk 0:01:44.6]} 20. Bxd3 {[%clk 0:01:35.1]}
20... O-O-O {[%clk 0:01:42.5]} 21. Be4 {[%clk 0:01:31.8]} 21... h5 {[%clk
0:01:26.9]} 22. Bc3 {[%clk 0:01:10.3]} 22... hxg4 {[%clk 0:01:26.7]} 23. hxg4
{[%clk 0:01:11.2]} 23... Rh4 {[%clk 0:01:18.2]} 24. Bf3 {[%clk 0:01:04.5]} 24...
g5 {[%clk 0:01:01.5]} 25. Be2 {[%clk 0:00:52.7]} 25... e5 {[%clk 0:01:00.5]} 26.
Bf3 {[%clk 0:00:51.2]} 26... Kc7 {[%clk 0:00:51.3]} 27. b4 {[%clk 0:00:49.9]}
27... Rdh8 {[%clk 0:00:47.6]} 28. b5 {[%clk 0:00:47.5]} 28... Rh2 {[%clk
0:00:45.5]} 29. a4 {[%clk 0:00:45.4]} 29... cxb5 {[%clk 0:00:36.1]} 30. cxb5
{[%clk 0:00:42.9]} 30... b6 {[%clk 0:00:35]} 31. Kc2 {[%clk 0:00:39.3]} 31...
Rd8 {[%clk 0:00:33.8]} 32. Be4 {[%clk 0:00:32.4]} 32... Rh4 {[%clk 0:00:32.8]}
33. Bf5 {[%clk 0:00:31.6]} 33... Rdh8 {[%clk 0:00:31.7]} 34. Rb1 {[%clk
0:00:17.6]} 34... Rh1 {[%clk 0:00:31.4]} 35. Rb3 {[%clk 0:00:18.2]} 35... Bc5
{[%clk 0:00:24.5]} 36. Kd3 {[%clk 0:00:14.1]} 36... Rd8+ {[%clk 0:00:23.5]} 37.
Ke4 {[%clk 0:00:13.8]} 37... Rd1 {[%clk 0:00:19.8]} 38. a5 {[%clk 0:00:13.4]}
38... R1xd2 {[%clk 0:00:15.8]} 39. axb6+ {[%clk 0:00:13.6]} 39... Bxb6 {[%clk
0:00:14.2]} 40. Bxd2 {[%clk 0:00:14.5]} 40... Rxd2 {[%clk 0:00:14]} 41. Rc3+
{[%clk 0:00:14.3]} 41... Kd6 {[%clk 0:00:12.5]} 42. Rc6+ {[%clk 0:00:14.8]}
42... Ke7 {[%clk 0:00:12.1]} 43. Re6+ {[%clk 0:00:05]} 43... Kf7 {[%clk
0:00:11.9]} 44. Rc6 {[%clk 0:00:05.8]} 44... Ke7 {[%clk 0:00:11.4]} 45. Re6+
{[%clk 0:00:02.6]} 45... Kf7 {[%clk 0:00:11.8]} 46. Rc6 {[%clk 0:00:03.5]} 46...
Re2 {[%clk 0:00:12.2]} 47. Rc3 {[%clk 0:00:03.7]} 47... Ke7 {[%clk 0:00:12.2]}
48. Kf3 {[%clk 0:00:04.1]} 48... Rd2 {[%clk 0:00:12.1]} 49. Ke4 {[%clk
0:00:03.5]} 49... Rd6 {[%clk 0:00:12.1]} 50. Kf3 {[%clk 0:00:03.6]} 50... Rd2
{[%clk 0:00:12]} 51. Rc6 {[%clk 0:00:03.5]} 51... Rb2 {[%clk 0:00:11.7]} 52.
Re6+ {[%clk 0:00:03.2]} 52... Kf7 {[%clk 0:00:12.2]} 53. Bd3 {[%clk 0:00:03.1]}
53... Rb3 {[%clk 0:00:11.6]} 54. Ke4 {[%clk 0:00:03.4]} 54... Rb4+ {[%clk
0:00:11.3]} 55. Kf3 {[%clk 0:00:03.9]} 55... Ra4 {[%clk 0:00:09.6]} 56. Rc6
{[%clk 0:00:03.9]} 56... Ra3 {[%clk 0:00:09.7]} 57. Ke4 {[%clk 0:00:03.5]} 57...
Ra4+ {[%clk 0:00:09.9]} 58. Bc4+ {[%clk 0:00:03.7]} 58... Ke7 {[%clk 0:00:09.7]}
59. Kf5 {[%clk 0:00:02.8]} 59... Ra3 {[%clk 0:00:08.5]} 60. Re6+ {[%clk
0:00:01.6]} 60... Kd7 {[%clk 0:00:08.5]} 61. Rxf6 {[%clk 0:00:02.5]} 61... Rxe3
{[%clk 0:00:08.3]} 62. Bd5 {[%clk 0:00:02.7]} 62... Rd3 {[%clk 0:00:07.7]} 63.
Bc6+ {[%clk 0:00:03]} 63... Kc7 {[%clk 0:00:07.4]} 64. Kxg5 {[%clk 0:00:03.4]}
64... Rd6 {[%clk 0:00:06.6]} 65. Rf7+ {[%clk 0:00:03.7]} 65... Kd8 {[%clk
0:00:06.2]} 66. Kf5 {[%clk 0:00:04.3]} 66... Bd4 {[%clk 0:00:05.5]} 67. g5
{[%clk 0:00:04.5]} 67... Kc8 {[%clk 0:00:02.2]} 68. g6 {[%clk 0:00:04.9]} 68...
Rd8 {[%clk 0:00:02.6]} 69. g7 {[%clk 0:00:05.1]} 69... e4 {[%clk 0:00:01.7]} 70.
Bb7+ {[%clk 0:00:05.2]} 70... Kb8 {[%clk 0:00:01.6]} 71. Bxe4 {[%clk 0:00:06.1]}
71... Bb6 {[%clk 0:00:01.3]} 72. Rf8 {[%clk 0:00:04.6]} 72... Kc7 {[%clk
0:00:01]} 73. Rxd8 {[%clk 0:00:04.7]} 73... Kxd8 {[%clk 0:00:01.9]} 74. g8=Q+
{[%clk 0:00:05.6]} 74... Ke7 {[%clk 0:00:02.4]} 75. Qd5 {[%clk 0:00:06.2]} 75...
Ke8 {[%clk 0:00:01.3]} 76. Qc6+ {[%clk 0:00:07.1]} 76... Kf8 {[%clk 0:00:01.9]}
77. Kg6 {[%clk 0:00:07.1]} 77... Ke7 {[%clk 0:00:02]} 78. Bf5 {[%clk 0:00:07]}
78... Kd8 {[%clk 0:00:02]} 79. Qd7# {[%clk 0:00:07.4]} 1-0

[Event "Late-Titled-Tuesday-Blitz-June-04-2024"]
[Site "Chess.com"]
[Date "2024.06.04"]
[Round "2"]
[White "Timurist"]
[Black "The_Sherman_Variation"]
[Result "0-1"]
[WhiteElo "2350"]
[BlackElo "2593"]
[TimeControl "180+1"]
[EndTime "14:19:28 PDT"]
[Termination "The_Sherman_Variation won on time"]

1. e4 {[%clk 0:03:00.9]} 1... b6 {[%clk 0:03:00.9]} 2. d4 {[%clk 0:03:00.8]}
2... Bb7 {[%clk 0:03:01.8]} 3. Nc3 {[%clk 0:03:01.3]} 3... e6 {[%clk 0:03:02.4]}
4. Be3 {[%clk 0:03:01]} 4... Bb4 {[%clk 0:03:02.1]} 5. f3 {[%clk 0:03:00.9]}
5... Nf6 {[%clk 0:03:00.9]} 6. Ne2 {[%clk 0:02:28.2]} 6... O-O {[%clk
0:02:57.8]} 7. Qd2 {[%clk 0:02:28.2]} 7... c5 {[%clk 0:02:57.3]} 8. g4 {[%clk
0:02:19.3]} 8... Nc6 {[%clk 0:02:49.7]} 9. a3 {[%clk 0:02:04.9]} 9... cxd4
{[%clk 0:02:48.4]} 10. Nxd4 {[%clk 0:01:57.6]} 10... Bc5 {[%clk 0:02:44.9]} 11.
Nxc6 {[%clk 0:01:54.1]} 11... Bxc6 {[%clk 0:02:42]} 12. Bxc5 {[%clk 0:01:53.8]}
12... bxc5 {[%clk 0:02:42.9]} 13. Qd6 {[%clk 0:01:46.4]} 13... Qb6 {[%clk
0:02:40.8]} 14. Rb1 {[%clk 0:01:35.1]} 14... Rab8 {[%clk 0:02:25.8]} 15. Be2
{[%clk 0:01:01.7]} 15... Qa5 {[%clk 0:02:15.9]} 16. O-O {[%clk 0:00:57]} 16...
Rxb2 {[%clk 0:02:11.1]} 17. Rxb2 {[%clk 0:00:47.1]} 17... Qxc3 {[%clk
0:02:10.2]} 18. Rfb1 {[%clk 0:00:40.4]} 18... Qe3+ {[%clk 0:02:05.5]} 19. Kf1
{[%clk 0:00:38.2]} 19... h6 {[%clk 0:02:00.1]} 20. Rb8 {[%clk 0:00:38]} 20...
Rxb8 {[%clk 0:01:59.8]} 21. Rxb8+ {[%clk 0:00:38.9]} 21... Kh7 {[%clk
0:01:59.9]} 22. Qd3 {[%clk 0:00:33.3]} 22... Qc1+ {[%clk 0:01:59.5]} 23. Kg2
{[%clk 0:00:33.1]} 23... e5 {[%clk 0:01:59.1]} 24. Rb3 {[%clk 0:00:21.5]} 24...
a5 {[%clk 0:01:48.5]} 25. Rc3 {[%clk 0:00:21.5]} 25... Qe1 {[%clk 0:01:40.2]}
26. Rxc5 {[%clk 0:00:20]} 26... Qh4 {[%clk 0:01:34.3]} 27. Rxe5 {[%clk
0:00:18.2]} 27... Qe1 {[%clk 0:01:33]} 28. Rc5 {[%clk 0:00:15.1]} 28... g6
{[%clk 0:01:28.4]} 29. Rc3 {[%clk 0:00:13]} 29... Qc1 {[%clk 0:01:22.3]} 30. Qe3
{[%clk 0:00:12.8]} 30... Qb2 {[%clk 0:01:20.7]} 31. Qd3 {[%clk 0:00:10.5]} 31...
Qb7 {[%clk 0:01:17.9]} 32. Rb3 {[%clk 0:00:09.9]} 32... Qc7 {[%clk 0:01:17]} 33.
Qe3 {[%clk 0:00:09.9]} 33... Qe5 {[%clk 0:01:15.8]} 34. Rc3 {[%clk 0:00:08.9]}
34... Bb7 {[%clk 0:01:11.5]} 35. Rc5 {[%clk 0:00:08.8]} 35... d5 {[%clk
0:01:11.8]} 36. Rxa5 {[%clk 0:00:08.6]} 36... Qe6 {[%clk 0:01:10.5]} 37. Bd3
{[%clk 0:00:08.5]} 37... dxe4 {[%clk 0:01:10]} 38. Bxe4 {[%clk 0:00:09.3]} 38...
Bxe4 {[%clk 0:01:06.4]} 39. fxe4 {[%clk 0:00:09.6]} 39... Qxg4+ {[%clk
0:01:06.9]} 40. Kf2 {[%clk 0:00:09.4]} 40... Nxe4+ {[%clk 0:01:07]} 41. Ke1
{[%clk 0:00:08.2]} 41... Nd6 {[%clk 0:01:03.6]} 42. Rc5 {[%clk 0:00:06.8]} 42...
Qa4 {[%clk 0:01:00.6]} 43. Kd2 {[%clk 0:00:04.1]} 43... Ne4+ {[%clk 0:00:57.9]}
44. Kc1 {[%clk 0:00:02.4]} 44... Nxc5 {[%clk 0:00:55.9]} 45. Qxc5 {[%clk
0:00:03.3]} 45... Qf4+ {[%clk 0:00:56.2]} 46. Kb2 {[%clk 0:00:03.3]} 46... Qxh2
{[%clk 0:00:56.4]} 47. a4 {[%clk 0:00:03.3]} 47... Qb8+ {[%clk 0:00:57]} 48. Qb5
{[%clk 0:00:03.1]} 48... Qc7 {[%clk 0:00:53.9]} 49. a5 {[%clk 0:00:03.3]} 49...
h5 {[%clk 0:00:54.5]} 50. a6 {[%clk 0:00:03.6]} 50... h4 {[%clk 0:00:54.1]} 51.
Qb7 {[%clk 0:00:04]} 51... Qe5+ {[%clk 0:00:54.3]} 52. Ka2 {[%clk 0:00:04]}
52... Qe6+ {[%clk 0:00:54]} 53. Ka3 {[%clk 0:00:03.3]} 53... Qd6+ {[%clk
0:00:50.2]} 54. Ka4 {[%clk 0:00:03]} 54... Qd4+ {[%clk 0:00:50.6]} 55. Kb3
{[%clk 0:00:03.2]} 55... Qe3+ {[%clk 0:00:50.3]} 56. c3 {[%clk 0:00:03.7]} 56...
Qe6+ {[%clk 0:00:50.5]} 57. c4 {[%clk 0:00:03.9]} 57... Qe3+ {[%clk 0:00:50.6]}
58. Kb4 {[%clk 0:00:04.5]} 58... Qd2+ {[%clk 0:00:51]} 59. Kb5 {[%clk
0:00:04.3]} 59... Qb2+ {[%clk 0:00:50.9]} 60. Kc5 {[%clk 0:00:04.9]} 60... Qe5+
{[%clk 0:00:50.7]} 61. Qd5 {[%clk 0:00:03.2]} 61... Qc7+ {[%clk 0:00:50]} 62.
Kb5 {[%clk 0:00:03.7]} 62... h3 {[%clk 0:00:47.8]} 63. Qb7 {[%clk 0:00:01.6]}
63... Qxb7+ {[%clk 0:00:42.3]} 64. axb7 {[%clk 0:00:02.5]} 64... h2 {[%clk
0:00:42.9]} 65. b8=Q {[%clk 0:00:03]} 65... h1=Q {[%clk 0:00:43.5]} 66. Qc7
{[%clk 0:00:01.1]} 66... Qb1+ {[%clk 0:00:41.5]} 67. Kc5 {[%clk 0:00:01.7]}
67... Qf5+ {[%clk 0:00:41.6]} 68. Kb6 {[%clk 0:00:02.3]} 68... g5 {[%clk
0:00:41.9]} 69. c5 {[%clk 0:00:03.2]} 69... g4 {[%clk 0:00:42]} 70. c6 {[%clk
0:00:04.1]} 70... Kg7 {[%clk 0:00:40.9]} 71. Qd7 {[%clk 0:00:04.3]} 71... Qf2+
{[%clk 0:00:38.3]} 72. Kc7 {[%clk 0:00:04.9]} 72... Qf4+ {[%clk 0:00:38.4]} 73.
Kd8 {[%clk 0:00:05.3]} 73... g3 {[%clk 0:00:38.1]} 74. c7 {[%clk 0:00:05.6]}
74... Qf6+ {[%clk 0:00:34.5]} 75. Qe7 {[%clk 0:00:05.9]} 75... g2 {[%clk
0:00:29.7]} 76. c8=Q {[%clk 0:00:04.4]} 76... g1=Q {[%clk 0:00:29.6]} 77. Qxf6+
{[%clk 0:00:04.3]} 77... Kxf6 {[%clk 0:00:30.5]} 78. Qc3+ {[%clk 0:00:04.5]}
78... Kg6 {[%clk 0:00:30.3]} 79. Qd3+ {[%clk 0:00:04.7]} 79... Kg7 {[%clk
0:00:30.9]} 80. Ke7 {[%clk 0:00:04.5]} 80... Qe1+ {[%clk 0:00:30.1]} 81. Kd6
{[%clk 0:00:04.4]} 81... Qe6+ {[%clk 0:00:30.5]} 82. Kc5 {[%clk 0:00:04.5]}
82... f5 {[%clk 0:00:30.9]} 83. Kd4 {[%clk 0:00:03]} 83... Kf6 {[%clk
0:00:31.2]} 84. Qg3 {[%clk 0:00:01.2]} 84... Qe4+ {[%clk 0:00:30.2]} 85. Kc3
{[%clk 0:00:01.6]} 85... f4 {[%clk 0:00:29.4]} 86. Qg8 {[%clk 0:00:01.6]} 86...
Qe3+ {[%clk 0:00:28.4]} 87. Kc2 {[%clk 0:00:01.7]} 87... Kf5 {[%clk 0:00:28.8]}
88. Qf7+ {[%clk 0:00:01.4]} 88... Kg4 {[%clk 0:00:28]} 89. Qg6+ {[%clk
0:00:01.7]} 89... Kf3 {[%clk 0:00:28.4]} 90. Qh5+ {[%clk 0:00:02.3]} 90... Kf2
{[%clk 0:00:27.7]} 91. Qh2+ {[%clk 0:00:02.1]} 91... Kf1 {[%clk 0:00:27.6]} 92.
Qh1+ {[%clk 0:00:01.4]} 92... Ke2 {[%clk 0:00:27.2]} 0-1